bitfinex/quotes_ETHUSD_20241207
["timestamp","ask_amount","ask_price","bid_price","bid_amount"]
[1733565232633,0.0352831,3986.8,3986.6,0.7987]
[1733565232836,1.05053678,3987.1,3986.6,0.7987]
[1733565233132,2.20759471,3987.0,3986.6,0.7987]
[1733565233439,0.86892335,3986.9,3986.6,0.7987]
[1733565233740,0.0352831,3986.8,3986.6,0.7987]
[1733565234232,1.05053678,3987.1,3986.6,0.7987]
[1733565234548,2.1723581,3987.0,3986.8,1.08611738]
[1733565234710,0.86894324,3986.9,3986.6,0.7987]
[1733565234916,0.03527318,3986.9,3986.6,0.7987]
[1733565235421,1.05053678,3987.1,3986.6,0.7987]
[1733565235625,0.03510046,3986.8,3986.6,0.7987]
[1733565235806,1.05053678,3987.0,3986.6,0.7987]
[1733565236008,0.03509885,3986.7,3986.6,0.7987]
[1733565236216,0.8689927,3986.7,3986.6,0.7987]
[1733565236630,0.90409155,3986.7,3986.6,0.7987]
[1733565236814,2.20761963,3986.7,3986.6,0.7987]
[1733565237200,0.03509885,3986.7,3986.6,0.7987]
[1733565237646,1.05053678,3987.0,3986.6,0.7987]
[1733565237845,0.03509885,3986.7,3986.6,0.7987]
[1733565238217,1.05053678,3987.0,3986.6,0.7987]
[1733565238417,2.17295189,3986.9,3986.6,0.7987]
[1733565238618,0.86925464,3986.8,3986.6,0.7987]
[1733565238835,0.03510207,3986.9,3986.6,0.7987]
[1733565239040,0.03509885,3986.7,3986.6,0.7987]
[1733565239741,1.05053678,3986.9,3986.6,0.7987]
[1733565240048,0.13053025,3987.2,3986.6,0.7987]
[1733565240049,1.05053678,3987.0,3986.6,0.7987]
[1733565240344,2.2090294,3986.9,3986.6,0.7987]
[1733565240557,0.86964041,3986.8,3986.6,0.7987]
[1733565240845,0.03509885,3986.7,3986.6,0.7987]
[1733565241047,1.05053678,3987.0,3986.6,1.09217649]
[1733565241257,2.17412215,3986.9,3986.6,1.09217649]
[1733565241594,0.03510207,3986.9,3986.6,1.09217649]
[1733565242621,2.17404877,3986.8,3986.6,1.09217649]
[1733565242825,3.25924198,3986.7,3986.6,1.09217649]
[1733565243558,0.90429218,3986.7,3986.6,1.09217649]
[1733565244618,0.90429218,3986.7,3986.6,1.2959329]
[1733565244619,1.64459886,3986.7,3986.6,1.2959329]
[1733565244813,0.34004363,3986.7,3986.6,1.2959329]
[1733565245017,1.64462711,3986.7,3986.6,1.2959329]
[1733565245433,1.64462857,3986.7,3986.6,1.2959329]
[1733565245628,1.64460449,3986.7,3986.6,1.2959329]
[1733565245833,0.34004363,3986.7,3986.6,1.2959329]
[1733565247248,2.69508872,3986.7,3986.6,0.4972329]
[1733565247462,1.64455194,3986.7,3986.6,0.4972329]
[1733565247775,2.6962393,3986.7,3986.6,0.4972329]
[1733565248736,2.6962393,3986.7,3986.6,0.20375641]
[1733565249097,3.22035712,3986.7,3986.6,0.20375641]
[1733565249226,3.38353795,3986.7,3986.6,0.20375641]
[1733565249561,3.22165557,3986.7,3986.6,0.20375641]
[1733565250378,1.61176006,3986.7,3986.6,0.20375641]
[1733565250537,2.9158242,3986.7,3986.6,0.07836785]
[1733565251143,2.39003444,3986.7,3986.6,0.07836785]
[1733565251369,2.390029,3986.7,3986.6,0.07836785]
[1733565251541,2.39004271,3986.7,3986.6,0.07836785]
[1733565252372,1.33872057,3986.7,3986.6,0.07836785]
[1733565252672,2.38997314,3986.7,3986.6,0.07836785]
[1733565253375,2.39009891,3986.7,3986.6,0.07836785]
[1733565253573,2.39004538,3986.7,3986.6,0.07836785]
[1733565254642,1.33872057,3986.7,3986.6,0.07836785]
[1733565255573,1.33872057,3986.7,3986.6,0.07837634]
[1733565255872,2.3899089,3986.7,3986.6,0.07837634]
[1733565256181,2.3899089,3986.7,3986.4,1.91521738]
[1733565256339,2.3899089,3986.7,3986.4,2.11959777]
[1733565256340,2.35525247,3986.6,3986.4,2.11959777]
[1733565256549,0.03439845,3986.6,3986.5,0.07837636]
[1733565256855,1.33810511,3986.6,3986.5,0.07837636]
[1733565257393,0.03439845,3986.6,3986.5,0.07837636]
[1733565257559,0.03439845,3986.6,3986.5,0.31103243]
[1733565257740,1.05118833,3986.8,3986.5,0.31103243]
[1733565257942,1.05118833,3987.0,3986.6,0.07837636]
[1733565258152,1.30379444,3986.9,3986.7,0.07837636]
[1733565258450,1.05118833,3987.0,3986.8,0.07837636]
[1733565258651,1.05118833,3987.0,3986.9,0.07837636]
[1733565258858,1.30383761,3987.0,3986.9,0.07837636]
[1733565259063,1.30383761,3987.0,3986.9,0.07836456]
[1733565261285,1.05118833,3987.1,3986.9,0.07836456]
[1733565261468,1.05118833,3987.1,3987.0,0.07836456]
[1733565261647,2.35501323,3987.1,3987.0,0.07836456]
[1733565262082,2.35501323,3987.1,3987.0,1.91608194]
[1733565262381,1.18171858,3987.2,3987.0,2.12021753]
[1733565262590,0.13053025,3987.2,3987.1,0.07836137]
[1733565262745,1.43436882,3987.2,3987.1,0.07836137]
[1733565263180,2.48555715,3987.2,3987.1,0.07836137]
[1733565263785,1.43436882,3987.2,3987.1,0.07836137]
[1733565264672,2.30358401,3987.2,3987.1,0.07836137]
[1733565266093,3.35477234,3987.2,3987.1,0.07836137]
[1733565266381,2.30358401,3987.2,3987.1,0.07836137]
[1733565266785,3.38951741,3987.2,3987.1,0.07836137]
[1733565270360,3.15562908,3987.2,3987.1,0.07836137]
[1733565272869,3.15562908,3987.2,3986.5,1.83771738]
[1733565273066,3.22569404,3987.1,3986.6,0.27465368]
[1733565273266,2.20860397,3987.0,3986.7,0.07836857]
[1733565273492,0.86960636,3986.9,3986.8,0.07836857]
[1733565273871,0.90419282,3986.9,3986.8,0.07836857]
[1733565274796,2.20866117,3986.9,3986.8,0.07836857]
[1733565276725,3.54128849,3986.9,3986.8,0.07836857]
[1733565277214,5.11839212,3986.9,3986.8,0.07836857]
[1733565277414,6.87414212,3986.9,3986.8,0.07836857]
[1733565277918,3.26026939,3986.9,3986.8,0.07836857]
[1733565279927,2.20854679,3986.9,3986.8,0.07837037]
[1733565280119,3.26015501,3986.9,3986.8,0.07837037]
[1733565280422,2.20854679,3986.9,3986.8,0.07837037]
[1733565280594,3.26014606,3986.9,3986.8,0.07837037]
[1733565280993,2.20854679,3986.9,3986.8,0.07837037]
[1733565283235,2.20854679,3986.9,3986.8,0.07837241]
[1733565283723,2.20854679,3986.9,3986.8,0.07837293]
[1733565283885,3.26008126,3986.9,3986.8,0.07837293]
[1733565284817,1.08612093,3986.9,3986.8,0.07837293]
[1733565285127,3.25985813,3986.9,3986.8,0.07837293]
[1733565285620,2.20832366,3986.9,3986.8,0.07837293]
[1733565286513,3.78542729,3986.9,3986.8,0.07837293]
[1733565286919,6.29545247,3986.9,3986.8,0.07837293]
[1733565287215,6.29545247,3986.9,3986.2,1.08611738]
[1733565287216,6.45705311,3986.9,3986.2,1.08611738]
[1733565287410,1.05150269,3986.6,3986.3,0.18707174]
[1733565287614,0.86949488,3986.5,3986.4,0.07837894]
[1733565287988,0.90324607,3986.5,3986.4,0.07837894]
[1733565288532,2.20738775,3986.5,3986.4,0.07837894]
[1733565289525,2.206948,3986.5,3986.4,0.07837894]
[1733565289898,2.20689465,3986.5,3986.4,0.07837894]
[1733565290119,2.20689465,3986.5,3986.4,0.21353575]
[1733565290503,0.90300857,3986.5,3986.4,0.21353575]
[1733565290721,2.20682916,3986.5,3986.4,0.21353575]
[1733565291027,0.90300857,3986.5,3986.4,0.21353575]
[1733565291214,2.20659167,3986.5,3986.4,0.21353575]
[1733565291592,0.90300857,3986.5,3986.4,0.21353575]
[1733565291996,2.20646849,3986.5,3986.4,0.21353575]
[1733565292305,0.90300857,3986.5,3986.4,0.21353575]
[1733565292902,0.90300857,3986.5,3986.4,0.21353584]
[1733565293319,2.20639604,3986.5,3986.4,0.21353584]
[1733565293522,0.90300857,3986.5,3986.4,0.21353584]
[1733565294538,0.9026344,3986.5,3986.4,0.21353584]
[1733565295227,0.9025966,3986.5,3986.4,0.21353584]
[1733565296006,2.20582703,3986.5,3986.4,0.07837903]
[1733565296235,0.9025966,3986.5,3986.4,0.07837903]
[1733565296439,3.96174226,3986.5,3986.4,0.07837903]
[1733565296650,5.01324495,3986.5,3986.4,0.07837903]
[1733565297296,5.01240859,3986.5,3986.4,0.07837903]
[1733565298595,5.80750859,3986.5,3986.4,0.07837903]
[1733565300132,5.80690752,3986.5,3986.4,0.07837903]
[1733565301555,4.75624119,3986.5,3986.4,0.07837903]
[1733565303513,4.75589575,3986.5,3986.4,0.07837903]
[1733565305325,5.64351213,3986.5,3986.4,0.07837903]
[1733565305537,7.18940921,3986.5,3986.4,0.07837903]
[1733565307564,7.18697392,3986.5,3986.4,0.07837903]
[1733565307725,0.7951,3986.0,3985.4,1.88861738]
[1733565307933,0.03304545,3985.9,3985.5,0.07839246]
[1733565308147,0.03304545,3985.9,3985.6,0.07839246]
[1733565308326,0.03304545,3985.9,3985.4,2.07747912]
[1733565308327,0.03304545,3985.9,3985.7,0.07839246]
[1733565308532,0.03304545,3985.9,3985.8,0.07839246]
[1733565309861,0.03304545,3985.9,3985.8,0.07839264]
[1733565310160,0.03304545,3985.9,3985.4,2.07747912]
[1733565310356,0.03304545,3985.9,3985.8,0.07839256]
[1733565313568,0.03304545,3985.9,3985.8,0.0783911]
[1733565314455,0.01304545,3985.9,3985.8,0.0783911]
[1733565314663,0.03127065,3985.9,3985.8,0.0783911]
[1733565315184,0.03127065,3985.9,3985.8,2.6173211]
[1733565315340,0.03127065,3985.9,3985.8,3.54017383]
[1733565315538,1.1800789,3986.8,3985.9,2.53888]
[1733565315539,0.13016985,3986.8,3985.9,2.53888]
[1733565315767,0.13016985,3986.8,3986.3,1.08611738]
[1733565315966,0.13016985,3986.8,3986.4,0.0783911]
[1733565315967,0.03025739,3986.7,3986.4,0.0783911]
[1733565316149,0.13016985,3986.8,3986.5,0.0783911]
[1733565316353,0.13016985,3986.8,3986.3,1.08611738]
[1733565316354,0.13016985,3986.8,3986.6,0.0783911]
[1733565316646,0.13016985,3986.8,3986.7,0.0783911]
[1733565317664,0.99876927,3986.8,3986.7,0.0783911]
[1733565318061,0.13016985,3986.8,3986.7,0.0783911]
[1733565318580,0.99890107,3986.8,3986.7,0.0783911]
[1733565318774,0.99890335,3986.8,3986.7,0.0783911]
[1733565319275,2.75469335,3986.8,3986.7,0.0783911]
[1733565319447,4.05787375,3986.8,3986.7,0.0783911]
[1733565320261,4.05787375,3986.8,3985.9,1.86881738]
[1733565320581,0.8687335,3986.7,3986.0,0.35754763]
[1733565320790,1.88595985,3986.8,3986.1,0.07838062]
[1733565320953,1.75588,3986.6,3986.2,0.07838062]
[1733565321151,1.75588,3986.6,3986.3,0.07838062]
[1733565321343,1.75588,3986.6,3986.4,0.07838062]
[1733565321543,1.75588,3986.6,3986.5,0.07838062]
[1733565322065,4.97781663,3986.6,3986.5,0.07838062]
[1733565322269,5.80286266,3986.6,3986.5,0.07838062]
[1733565322446,4.75295361,3986.6,3986.5,0.07838062]
[1733565322779,7.53281995,3986.6,3986.5,0.07838062]
[1733565323085,8.05716555,3986.6,3985.6,0.7827]
[1733565323380,8.05716555,3986.6,3985.7,0.07839212]
[1733565323381,1.75608,3986.2,3985.7,0.07839212]
[1733565323581,0.86878487,3986.1,3985.6,0.7827]
[1733565323887,0.0304072,3986.1,3985.7,0.07839175]
[1733565324207,0.0304072,3986.1,3985.8,0.07839175]
[1733565324381,0.0304072,3986.1,3985.9,0.07839175]
[1733565324556,0.0304072,3986.1,3986.0,0.07839175]
[1733565324752,0.89920036,3986.1,3986.0,0.07839175]
[1733565325181,2.65530036,3986.1,3986.0,0.07839175]
[1733565326984,3.95853914,3986.1,3986.0,0.07839175]
[1733565327160,5.80387297,3986.1,3986.0,0.07839175]
[1733565327980,5.80373563,3986.1,3986.0,0.07839175]
[1733565328899,4.7530018,3986.1,3986.0,0.07839175]
[1733565329052,4.7330018,3986.1,3986.0,0.07839175]
[1733565329256,3.4481242,3986.1,3986.0,0.07839175]
[1733565329457,5.65599904,3986.1,3986.0,0.07839175]
[1733565329653,4.7512213,3986.1,3986.0,0.07839175]
[1733565330087,5.80183366,3986.1,3986.0,0.07839175]
[1733565330456,5.80183366,3986.1,3986.0,0.07839273]
[1733565331400,4.7512213,3986.1,3986.0,0.07839273]
[1733565332196,4.7512213,3986.1,3986.0,0.09839273]
[1733565332990,4.75100723,3986.1,3986.0,0.09839273]
[1733565335077,6.32710798,3986.1,3986.0,0.09839273]
[1733565335292,4.75100723,3986.1,3986.0,0.09839273]
[1733565335594,4.75100723,3986.1,3986.0,0.11839273]
[1733565335982,6.32710798,3986.1,3986.0,0.11839273]
[1733565336613,4.75100723,3986.1,3986.0,0.11839273]
[1733565336777,6.32710798,3986.1,3986.0,0.11839273]
[1733565336977,4.75100723,3986.1,3986.0,0.11839273]
[1733565337598,6.32710798,3986.1,3986.0,0.11839273]
[1733565337901,6.32710798,3986.1,3986.0,0.04]
[1733565338797,4.75100723,3986.1,3986.0,0.04]
[1733565339774,4.75100723,3986.1,3986.0,0.11840038]
[1733565340091,4.75100723,3986.1,3986.0,0.04]
[1733565341608,6.32710798,3986.1,3986.0,0.04]
[1733565342496,4.75100723,3986.1,3986.0,0.04]
[1733565342714,4.15546711,3986.1,3986.0,0.04]
[1733565342913,4.75047337,3986.1,3986.0,0.04]
[1733565343112,5.83659075,3986.1,3986.0,0.04]
[1733565343301,7.4126915,3986.1,3986.0,0.02]
[1733565344507,5.83659075,3986.1,3986.0,0.02]
[1733565347272,5.83659075,3986.1,3986.0,0.09840057]
[1733565348381,6.88652718,3986.1,3986.0,0.09840057]
[1733565349478,7.87767225,3986.1,3986.0,0.09840057]
[1733565349815,6.82773582,3986.1,3986.0,0.02]
[1733565349979,8.9270104,3986.1,3986.0,0.02]
[1733565350398,6.82773582,3986.1,3986.0,0.02]
[1733565350620,8.9270104,3986.1,3986.0,0.02]
[1733565351196,1.75654,3985.1,3985.0,0.12799954]
[1733565351531,1.75663,3984.9,3984.5,0.8219]
[1733565352033,1.75663,3984.9,3984.6,0.07841724]
[1733565352034,0.02371878,3984.8,3984.6,0.07841724]
[1733565352328,1.75671,3984.7,3984.2,0.8219]
[1733565352531,1.75671,3984.7,3984.3,0.07841974]
[1733565352832,0.02371555,3984.6,3984.4,0.07841974]
[1733565353029,0.02371555,3984.6,3984.5,0.07841974]
[1733565357001,2.93841612,3985.9,3984.5,0.07841974]
[1733565357002,0.8263,3985.1,3984.5,0.07841974]
[1733565357342,1.75658,3985.0,3984.6,0.07841974]
[1733565357550,1.75658,3985.0,3984.7,0.07841974]
[1733565357834,1.75663,3984.9,3984.8,0.07841974]
[1733565362217,1.75655,3985.1,3984.8,0.07841974]
[1733565362423,2.53965,3985.6,3984.9,0.07841974]
[1733565362660,2.53965,3985.6,3984.7,0.7911]
[1733565362661,2.53965,3985.6,3985.0,0.07841974]
[1733565362828,2.53965,3985.6,3985.1,0.07841974]
[1733565363155,2.53965,3985.6,3985.2,0.07841974]
[1733565363321,1.75638,3985.5,3985.3,0.07841974]
[1733565363652,1.75638,3985.5,3984.7,0.7911]
[1733565363951,1.75638,3985.5,3984.8,0.07840862]
[1733565364121,1.75638,3985.5,3984.9,0.07840862]
[1733565364321,1.75638,3985.5,3985.0,0.07840862]
[1733565364538,1.75638,3985.5,3985.1,0.07840862]
[1733565364739,0.7833,3985.9,3985.3,0.7911]
[1733565364956,0.7833,3985.9,3985.4,0.07840862]
[1733565365175,1.75614,3986.0,3985.5,0.07840862]
[1733565365452,1.75614,3986.0,3985.6,0.07840862]
[1733565365663,1.75614,3986.0,3985.7,0.07840862]
[1733565365869,1.75614,3986.0,3985.8,0.07840862]
[1733565366053,1.75614,3986.0,3985.3,0.7911]
[1733565366232,1.75614,3986.0,3985.4,0.07840147]
[1733565366433,1.75614,3986.0,3985.5,0.07840147]
[1733565366633,1.75614,3986.0,3985.3,0.97882174]
[1733565366634,1.75614,3986.0,3985.6,0.07840147]
[1733565366964,1.75614,3986.0,3985.3,0.97882174]
[1733565367266,1.75614,3986.0,3985.4,0.07840106]
[1733565367435,1.75614,3986.0,3985.5,0.07840106]
[1733565367631,1.75614,3986.0,3985.6,0.07840106]
[1733565367967,1.75614,3986.0,3985.7,0.07840106]
[1733565368127,1.75614,3986.0,3985.8,0.07840106]
[1733565368330,1.75614,3986.0,3985.3,0.97882174]
[1733565368563,1.75614,3986.0,3985.4,0.07840166]
[1733565368767,1.75614,3986.0,3985.5,0.07840166]
[1733565368935,1.75614,3986.0,3985.6,0.07840166]
[1733565369138,1.75614,3986.0,3985.7,0.07840166]
[1733565369327,1.75614,3986.0,3985.8,0.07840166]
[1733565369537,1.75614,3986.0,3985.3,0.97882174]
[1733565369856,1.75618,3986.0,3985.4,0.07840103]
[1733565370176,1.75618,3986.0,3985.5,0.07840103]
[1733565370470,1.75618,3986.0,3985.6,0.07840103]
[1733565370673,1.75618,3986.0,3985.7,0.07840103]
[1733565370846,1.75618,3986.0,3985.8,0.07840103]
[1733565371029,1.75618,3986.0,3985.3,0.7911]
[1733565371232,1.75618,3986.0,3985.4,0.07840132]
[1733565371434,1.75618,3986.0,3985.5,0.07840132]
[1733565371667,1.75618,3986.0,3985.6,0.07840132]
[1733565371846,1.75618,3986.0,3985.7,0.07840132]
[1733565372061,1.75618,3986.0,3985.8,0.07840132]
[1733565372264,1.75618,3986.0,3985.5,1.08611738]
[1733565372572,1.75618,3986.0,3985.6,0.07840082]
[1733565372870,1.75618,3986.0,3985.7,0.07840082]
[1733565373077,1.75618,3986.0,3985.8,0.07840082]
[1733565373273,1.83306226,3986.2,3985.9,0.07840082]
[1733565373274,3.58912226,3986.2,3985.9,0.07840082]
[1733565373446,2.53936,3986.2,3985.5,1.08611738]
[1733565373779,3.58912226,3986.2,3985.6,0.07840009]
[1733565374067,3.58912226,3986.2,3985.5,1.08611738]
[1733565374279,3.58912226,3986.2,3985.7,0.07840011]
[1733565374481,3.58912226,3986.2,3985.8,0.07840011]
[1733565374634,2.53936,3986.2,3985.9,0.07840011]
[1733565374840,2.53936,3986.2,3985.5,1.08611738]
[1733565375168,2.53936,3986.2,3985.6,0.07839778]
[1733565375378,2.53936,3986.2,3985.7,0.07839778]
[1733565375583,2.53936,3986.2,3985.8,0.07839778]
[1733565375785,3.30642193,3986.2,3985.9,0.07839778]
[1733565376095,3.30642193,3986.2,3985.5,1.08611738]
[1733565376250,2.53936,3986.2,3985.6,0.07839825]
[1733565376583,2.53936,3986.2,3985.7,0.07839825]
[1733565376896,2.53936,3986.2,3985.8,0.07839825]
[1733565377182,2.53936,3986.2,3985.9,0.07839825]
[1733565377392,2.53936,3986.2,3985.5,1.08611738]
[1733565377681,1.7561,3986.1,3985.6,0.07839856]
[1733565377889,1.7561,3986.1,3985.7,0.07839856]
[1733565378189,1.7561,3986.1,3985.8,0.07839856]
[1733565378482,2.16908966,3986.0,3985.5,1.08611738]
[1733565378647,0.86766588,3985.9,3985.6,0.07839947]
[1733565378846,0.86766588,3985.9,3985.7,0.07839947]
[1733565379048,0.86766588,3985.9,3985.8,0.07839947]
[1733565379689,1.30142378,3986.1,3985.8,1.16451685]
[1733565379986,2.35124627,3986.3,3985.9,0.85589947]
[1733565380189,2.50703235,3986.4,3986.0,0.07839947]
[1733565380394,2.50703235,3986.4,3986.1,1.16451685]
[1733565380563,1.20551062,3986.4,3986.2,0.98091252]
[1733565380765,1.20551062,3986.4,3986.3,0.20381252]
[1733565381584,4.10714866,3987.2,3986.3,0.20381252]
[1733565381827,4.10714866,3987.2,3986.6,1.08611738]
[1733565381828,0.86753812,3987.1,3986.6,1.08611738]
[1733565381985,1.75566,3987.2,3986.7,0.20381252]
[1733565382151,1.83446226,3987.3,3986.8,0.16965652]
[1733565382357,0.86728244,3987.2,3986.9,0.07839947]
[1733565382553,0.86728244,3987.2,3987.0,0.07839947]
[1733565382769,0.86728244,3987.2,3987.1,0.07839947]
[1733565383267,2.73260629,3987.3,3987.1,0.07839947]
[1733565383268,3.18687472,3987.3,3987.1,0.07839947]
[1733565383589,3.18687472,3987.3,3986.6,1.08611738]
[1733565383774,3.18687472,3987.3,3986.7,0.07837455]
[1733565383976,3.18687472,3987.3,3986.8,0.07837455]
[1733565384164,0.4236637,3987.2,3986.9,0.07837455]
[1733565384491,0.4236637,3987.2,3987.0,0.07837455]
[1733565384690,2.1792837,3987.2,3986.6,1.08611738]
[1733565384893,0.4236637,3987.2,3986.7,0.85547479]
[1733565385079,0.7847,3987.3,3986.8,0.07837479]
[1733565385272,0.7847,3987.3,3986.9,0.07837479]
[1733565385467,0.7847,3987.3,3987.0,0.07837479]
[1733565385802,0.7847,3987.3,3986.8,1.08611738]
[1733565385966,0.7847,3987.3,3986.9,0.07837423]
[1733565386173,1.27367077,3987.3,3987.0,0.07837423]
[1733565386468,1.27367077,3987.3,3986.8,1.08611738]
[1733565386673,3.02925077,3987.3,3986.9,0.07837452]
[1733565386995,3.02925077,3987.3,3986.8,1.08611738]
[1733565387198,3.02925077,3987.3,3986.9,0.07837488]
[1733565387362,3.02925077,3987.3,3986.8,1.08611738]
[1733565387694,3.02925077,3987.3,3986.9,0.07837552]
[1733565387861,3.02925077,3987.3,3986.8,1.08611738]
[1733565388081,3.02925077,3987.3,3986.9,0.07837489]
[1733565388285,3.02925077,3987.3,3986.8,1.08611738]
[1733565388486,3.02925077,3987.3,3986.9,0.07837492]
[1733565388782,2.05855508,3987.2,3986.7,0.7971]
[1733565389013,2.05855508,3987.2,3986.8,0.07837547]
[1733565389184,2.05855508,3987.2,3986.9,0.07837547]
[1733565389379,2.05855508,3987.2,3986.7,0.02]
[1733565389698,2.05855508,3987.2,3986.8,0.07837655]
[1733565390027,0.28432551,3987.1,3986.9,0.07837655]
[1733565390187,0.28432551,3987.1,3986.7,0.02]
[1733565390383,0.28432551,3987.1,3986.8,0.07837674]
[1733565390591,2.03999551,3987.1,3986.9,0.07837674]
[1733565390786,2.03999551,3987.1,3986.7,0.02]
[1733565390985,2.03999551,3987.1,3986.8,0.07837706]
[1733565391200,2.03999551,3987.1,3986.9,0.07837706]
[1733565391526,0.28432551,3987.1,3986.7,0.02]
[1733565391851,2.54028,3987.3,3986.8,0.07837674]
[1733565391985,2.54028,3987.3,3986.9,0.07837674]
[1733565392187,2.54028,3987.3,3986.7,0.02]
[1733565392416,2.54028,3987.3,3986.8,0.07837666]
[1733565392603,2.54028,3987.3,3986.7,0.02]
[1733565392604,1.75566,3987.1,3986.9,0.07837666]
[1733565392916,1.75566,3987.1,3986.7,0.02]
[1733565393121,1.75566,3987.1,3986.8,0.07837691]
[1733565393427,1.75566,3987.1,3986.9,0.07837691]
[1733565393606,2.54029,3987.3,3987.0,0.07837691]
[1733565393819,1.038729,3987.3,3986.7,0.02]
[1733565394014,0.7847,3987.3,3986.8,0.07837682]
[1733565394181,0.7847,3987.3,3986.9,0.07837682]
[1733565394382,0.7847,3987.3,3987.0,0.07837681]
[1733565394585,0.7847,3987.3,3986.7,0.02]
[1733565394781,0.7847,3987.3,3986.8,0.07837663]
[1733565395100,1.75562,3987.2,3986.9,0.07837663]
[1733565395300,1.75562,3987.2,3987.0,0.07837663]
[1733565395504,1.75562,3987.2,3986.7,0.02]
[1733565395722,1.75562,3987.2,3986.8,0.07837712]
[1733565395912,1.75562,3987.2,3986.9,0.07837712]
[1733565396122,1.75562,3987.2,3987.0,0.07837712]
[1733565396331,1.75562,3987.2,3986.7,0.02]
[1733565396499,1.75562,3987.2,3986.8,0.07837705]
[1733565396857,1.75562,3987.2,3986.9,0.07837705]
[1733565397043,1.75562,3987.2,3986.7,0.02]
[1733565397044,1.75566,3987.1,3987.0,0.07837705]
[1733565397715,1.75566,3987.1,3987.0,0.07837708]
[1733565398118,1.75566,3987.1,3986.7,0.02]
[1733565398338,1.75566,3987.1,3987.0,0.0783772]
[1733565398634,1.73566,3987.1,3986.7,0.02]
[1733565398834,1.73566,3987.1,3986.8,0.07837745]
[1733565399050,1.73566,3987.1,3986.9,0.07837745]
[1733565399197,1.73566,3987.1,3986.7,0.02]
[1733565399398,1.73566,3987.1,3986.8,0.07837759]
[1733565399636,1.73566,3987.1,3986.9,0.07837759]
[1733565399810,1.73566,3987.1,3986.7,0.02]
[1733565400008,1.73566,3987.1,3986.8,0.0783772]
[1733565400203,1.73566,3987.1,3986.9,0.0783772]
[1733565400402,1.73566,3987.1,3987.0,0.0783772]
[1733565400613,1.73566,3987.1,3986.7,0.02]
[1733565400805,1.73566,3987.1,3986.8,0.07837759]
[1733565401029,1.73566,3987.1,3986.9,0.07837759]
[1733565401228,1.73566,3987.1,3986.7,0.02]
[1733565401538,1.73566,3987.1,3986.8,0.07837722]
[1733565401700,1.73566,3987.1,3986.9,1.1644946]
[1733565401900,2.54028,3987.3,3987.0,0.07837722]
[1733565402128,2.54028,3987.3,3986.9,1.08611738]
[1733565402337,2.54028,3987.3,3987.0,0.07837464]
[1733565402497,2.54028,3987.3,3986.9,1.08611738]
[1733565402697,2.54028,3987.3,3987.0,0.07837575]
[1733565402900,2.54028,3987.3,3986.9,1.08611738]
[1733565403149,2.54028,3987.3,3987.0,0.07837571]
[1733565403353,2.54028,3987.3,3987.1,0.07837571]
[1733565403500,2.54028,3987.3,3986.7,0.02]
[1733565403703,2.54028,3987.3,3986.8,0.07837472]
[1733565403931,2.54028,3987.3,3986.9,0.07837472]
[1733565404122,0.7824,3987.6,3987.0,0.07837472]
[1733565404326,0.7824,3987.6,3987.1,0.07837472]
[1733565404511,0.7824,3987.6,3986.9,0.825]
[1733565404716,0.7824,3987.6,3987.0,0.07837555]
[1733565405139,0.7824,3987.6,3987.1,0.07837555]
[1733565405322,0.7824,3987.6,3986.9,0.825]
[1733565405509,0.86575634,3987.5,3987.0,0.07837511]
[1733565405717,0.86575634,3987.5,3987.1,0.07837511]
[1733565405718,2.62127634,3987.5,3987.1,0.07837511]
[1733565405906,1.75552,3987.5,3986.9,0.825]
[1733565406255,1.75552,3987.5,3987.0,0.0783747]
[1733565406403,1.75553,3987.4,3987.1,0.0783747]
[1733565406605,1.75553,3987.4,3987.2,0.0783747]
[1733565406802,1.75553,3987.4,3986.9,0.845]
[1733565407044,1.75557,3987.3,3987.0,0.07837496]
[1733565407266,1.75557,3987.3,3987.1,0.07837496]
[1733565407469,1.75557,3987.3,3987.2,0.07837496]
[1733565407691,2.62150164,3987.3,3987.2,0.07837496]
[1733565407889,1.75557,3987.3,3987.2,0.07837496]
[1733565408052,1.75557,3987.3,3986.9,0.845]
[1733565408254,1.75557,3987.3,3987.0,0.07837521]
[1733565408551,1.75557,3987.3,3987.1,0.07837521]
[1733565408862,1.75557,3987.3,3987.2,0.07837521]
[1733565409398,1.75557,3987.3,3986.9,0.845]
[1733565409689,1.04976226,3987.5,3986.9,0.02]
[1733565409891,0.86631282,3987.4,3986.9,0.02]
[1733565410049,1.75559,3987.3,3986.9,0.02]
[1733565410445,1.75559,3987.3,3987.0,0.0783739]
[1733565410760,1.75559,3987.3,3987.1,0.0783739]
[1733565410957,1.75559,3987.3,3987.2,0.0783739]
[1733565411145,2.62205171,3987.3,3987.2,0.0783739]
[1733565411945,2.62205171,3987.3,3987.2,0.07837455]
[1733565414250,2.62236239,3987.3,3987.2,0.07837455]
[1733565415003,2.62237563,3987.3,3987.2,0.07837455]
[1733565415907,2.62237563,3987.3,3987.0,0.71929655]
[1733565416070,1.75559,3987.3,3987.0,0.71929655]
[1733565416270,3.05576099,3987.3,3987.0,0.71929655]
[1733565416667,3.05576099,3987.3,3987.0,0.56821855]
[1733565417099,0.86727549,3987.2,3987.0,0.56821855]
[1733565417305,3.05576099,3987.3,3987.0,0.56821855]
[1733565417476,0.86724075,3987.2,3987.0,0.56821855]
[1733565417681,3.05576099,3987.3,3987.0,0.56821855]
[1733565417882,0.86722213,3987.2,3987.0,0.41714055]
[1733565418201,1.75559,3987.3,3987.0,0.41714055]
[1733565418394,0.86725952,3987.2,3987.0,0.41714055]
[1733565418596,1.75559,3987.3,3987.0,0.41714055]
[1733565418913,0.8672461,3987.2,3986.9,0.02]
[1733565419079,2.27182957,3987.3,3986.6,0.97503938]
[1733565419427,0.86735669,3987.2,3986.6,0.97503938]
[1733565419598,3.32159183,3987.3,3986.6,0.97503938]
[1733565419909,0.867369,3987.2,3986.6,0.97503938]
[1733565420208,2.80535226,3987.3,3986.6,0.97503938]
[1733565420209,0.8675279,3987.1,3986.6,0.97503938]
[1733565420372,1.30128093,3987.2,3986.6,0.97503938]
[1733565420573,0.86751863,3987.1,3986.6,0.97503938]
[1733565420804,1.30124461,3987.2,3986.6,0.97503938]
[1733565420969,2.80535226,3987.3,3986.7,0.5097]
[1733565421177,0.86750557,3987.2,3986.7,0.5097]
[1733565421402,0.86750557,3987.1,3986.7,0.358622]
[1733565421585,1.30156091,3987.2,3986.7,0.358622]
[1733565421803,0.86771734,3987.1,3986.7,0.358622]
[1733565422029,1.30157841,3987.2,3986.7,0.358622]
[1733565422182,0.86772181,3987.1,3986.7,0.358622]
[1733565422382,1.04976226,3987.2,3986.8,0.12539509]
[1733565422620,0.86793786,3987.1,3986.7,0.33293909]
[1733565422807,1.04976226,3987.2,3986.7,0.33293909]